fUST/lending_fUST_20250827
["ID","MTS","AMOUNT","RATE_DAILY","PERIOD"]
[381533441,1756266328134,1997.43210153,0.000199,2]
[381533442,1756266329079,-172.75147692,0.00021599,2]
[381533443,1756266331625,-73.34366182,0.00021599,2]
[381533444,1756266331652,-79.61331595,0.00021627,2]
[381533445,1756266333273,-150.72868836,0.00021627,2]
[381533446,1756266335378,5000.0,0.00024,3]
[381533447,1756266336842,-488.0659922,0.00021627,2]
[381533448,1756266338967,-196.64743176,0.00021627,2]
[381533449,1756266341192,-269.0988277,0.00021627,2]
[381533450,1756266343374,-297.61056082,0.00020699,2]
[381533451,1756266346142,-168.95,0.00020699,2]
[381533452,1756266348481,-66.91240418,0.00020699,2]
[381533453,1756266348507,-243.99014949,0.00021627,2]
[381533454,1756266350174,-357.21891305,0.00021627,2]
[381533455,1756266351586,4240.08056014,0.00024,3]
[381533456,1756266354358,-151.70607044,0.00021627,2]
[381533457,1756266357174,-60.36271258,0.00021627,2]
[381533458,1756266357196,-138.63728742,0.00021673,2]
[381533459,1756266358780,-162.49542098,0.00021597,2]
[381533460,1756266358802,-162.49542098,0.00021599,2]
[381533461,1756266358824,-57.8906581,0.00021673,2]
[381533462,1756266358846,-85.07799251,0.00021673,2]
[381533463,1756266360401,-168.94994048,0.00021573,2]
[381533464,1756266398747,794.96,0.0002198,3]
[381533465,1756266400280,5174.11,0.00022,7]
[381533466,1756266400309,220.0,0.00022917,3]
[381533467,1756266409456,397.48,0.0002198,3]
[381533468,1756266413637,-181.02062697,0.0002066,2]
[381533469,1756266415256,-294.29894623,0.0002066,2]
[381533470,1756266417654,-365.1905991,0.0002066,2]
[381533471,1756266417676,-6.51045467,0.00020698,2]
[381533472,1756266420113,198.74,0.00021688,3]
[381533473,1756266421155,-227.23635041,0.00020698,2]
[381533474,1756266422948,-190.32331051,0.00020698,2]
[381533475,1756266424701,-177.91537402,0.00020698,2]
[381533476,1756266429760,-300.0,0.00020698,2]
[381533477,1756266430857,198.74,0.00021688,3]
[381533478,1756266432095,-98.01451039,0.00020698,2]
[381533479,1756266432116,-52.98548961,0.00021473,2]
[381533480,1756266466265,382.32,0.00021662,10]
[381533481,1756266480460,182.39,0.00021662,10]
[381533483,1756266494466,151.99,0.00021662,10]
[381533484,1756266502406,1871.06712225,0.000199,2]
[381533486,1756266517941,-227.191258,0.000207,2]
[381533487,1756266545247,5000.0,0.00023,3]
[381533488,1756266554219,-1772.808742,0.000207,2]
[381533489,1756266554242,-624.77533157,0.00020829,2]
[381533490,1756266554267,-206.983164,0.00020951,2]
[381533491,1756266554303,-208.89608379,0.00021021,2]
[381533492,1756266554323,-164.06342582,0.00021572,2]
[381533493,1756266554343,-2.23200759,0.00021573,2]
[381533494,1756266554363,-2845.96024857,0.00021598,2]
[381533495,1756266554384,-300.0,0.00021625,2]
[381533496,1756266554404,-500.0,0.00021625,2]
[381533497,1756266554424,-500.0,0.00021626,2]
[381533498,1756266554444,-500.0,0.00021626,2]
[381533499,1756266554464,-305.05310436,0.00021626,2]
[381533500,1756266554490,-500.0,0.00021626,2]
[381533501,1756266554511,-500.0,0.00021626,2]
[381533502,1756266554533,-500.0,0.00021626,2]
[381533503,1756266554553,-500.0,0.00021626,2]
[381533504,1756266554573,-500.0,0.00021626,2]
[381533505,1756266554595,-500.0,0.00021626,2]
[381533506,1756266554617,-500.0,0.00021626,2]
[381533507,1756266554638,-175.1496489,0.00021626,2]
[381533508,1756266554659,-500.0,0.00021626,2]
[381533509,1756266554681,-177.21005458,0.00021626,2]
[381533510,1756266554702,-500.0,0.00021626,2]
[381533511,1756266554724,-500.0,0.00021626,2]
[381533512,1756266554751,-500.0,0.00021626,2]
[381533513,1756266554772,-154.45924833,0.00021626,2]
[381533514,1756266554795,-500.0,0.00021626,2]
[381533515,1756266554817,-473.58286736,0.00021626,2]
[381533516,1756266554839,-500.0,0.00021626,2]
[381533517,1756266554859,-358.28297768,0.00021626,2]
[381533518,1756266554879,-293.30063552,0.00021626,2]
[381533519,1756266554900,-20.72012193,0.00021626,2]
[381533520,1756266576250,759.99,0.00021615,10]
[381533521,1756266597657,5173.28,0.00022,7]
[381533522,1756266600086,5934.56,0.00021661,3]
[381533523,1756266610907,431.44,0.00021661,3]
[381533524,1756266610932,2535.84,0.00021661,3]
[381533525,1756266621851,1884.66,0.00021661,3]
[381533526,1756266629009,198.0,0.0002266,120]
[381533527,1756266632489,-5000.0,0.00021409,2]
[381533528,1756266632498,-1200.0,0.00021523,2]
[381533529,1756266632508,-300.0,0.00021524,2]
[381533530,1756266632517,-300.0,0.00021524,2]
[381533531,1756266632527,-300.0,0.00021524,2]
[381533532,1756266632536,-300.0,0.00021524,2]
[381533533,1756266632549,-300.0,0.00021524,2]
[381533534,1756266632558,-7409.31851106,0.00021525,2]
[381533535,1756266632568,-164.04454852,0.00021525,2]
[381533536,1756266632577,-164.04454851,0.00021549,2]
[381533537,1756266632587,-164.04454851,0.00021573,2]
[381533538,1756266632596,-500.0,0.00021625,2]
[381533539,1756266632606,-479.27987807,0.00021626,2]
[381533540,1756266632615,-500.0,0.00021626,2]
[381533541,1756266632624,-500.0,0.00021626,2]
[381533542,1756266632634,-500.0,0.00021626,2]
[381533543,1756266632643,-500.0,0.00021626,2]
[381533544,1756266632658,-500.0,0.00021626,2]
[381533545,1756266632667,-500.0,0.00021626,2]
[381533546,1756266632677,-500.0,0.00021626,2]
[381533547,1756266632686,-500.0,0.00021626,2]
[381533548,1756266632700,-500.0,0.00021626,2]
[381533549,1756266632712,-500.0,0.00021626,2]
[381533550,1756266632722,-500.0,0.00021626,2]
[381533551,1756266632731,-500.0,0.00021626,2]
[381533552,1756266632740,-500.0,0.00021626,2]
[381533553,1756266632750,-571.97158721,0.00021626,2]
[381533572,1756266632993,-500.0,0.00021626,2]
[381533574,1756266633004,-500.0,0.00021626,2]
[381533576,1756266633013,-500.0,0.00021626,2]
[381533578,1756266633023,-500.0,0.00021626,2]
[381533580,1756266633033,-500.0,0.00021626,2]
[381533582,1756266633043,-500.0,0.00021626,2]
[381533584,1756266633057,-500.0,0.00021626,2]
[381533586,1756266633066,-500.0,0.00021626,2]
[381533588,1756266633076,-250.0,0.00021626,2]
[381533590,1756266633085,-500.0,0.00021626,2]
[381533592,1756266633095,-500.0,0.00021626,2]
[381533593,1756266633105,-500.0,0.00021626,2]
[381533596,1756266633117,-500.0,0.00021626,2]
[381533598,1756266633127,-500.0,0.00021626,2]
[381533600,1756266633139,-500.0,0.00021626,2]
[381533602,1756266633149,-500.0,0.00021626,2]
[381533604,1756266633162,-500.0,0.00021626,2]
[381533606,1756266633172,-500.0,0.00021626,2]
[381533608,1756266633181,-500.0,0.00021626,2]
[381533610,1756266633191,-390.06589709,0.00021626,2]
[381533612,1756266633206,-500.0,0.00021626,2]
[381533614,1756266633216,-500.0,0.00021626,2]
[381533616,1756266633225,-500.0,0.00021626,2]
[381533618,1756266633235,-500.0,0.00021626,2]
[381533620,1756266633245,-500.0,0.00021626,2]
[381533622,1756266633254,-500.0,0.00021626,2]
[381533623,1756266633263,-500.0,0.00021626,2]
[381533625,1756266633273,-500.0,0.00021626,2]
[381533626,1756266633282,-500.0,0.00021626,2]
[381533627,1756266633293,-500.0,0.00021626,2]
[381533629,1756266633306,-500.0,0.00021626,2]
[381533631,1756266633315,-500.0,0.00021626,2]
[381533632,1756266633325,-500.0,0.00021626,2]
[381533633,1756266633335,-500.0,0.00021626,2]
[381533634,1756266633344,-500.0,0.00021626,2]
[381533636,1756266633354,-500.0,0.00021626,2]
[381533638,1756266633363,-566.95367825,0.00021626,2]
[381533639,1756266633372,-500.0,0.00021626,2]
[381533640,1756266633382,-500.0,0.00021626,2]
[381533641,1756266633392,-500.0,0.00021626,2]
[381533642,1756266633402,-500.0,0.00021626,2]
[381533643,1756266633412,-500.0,0.00021626,2]
[381533644,1756266633421,-500.0,0.00021626,2]
[381533645,1756266633431,-500.0,0.00021626,2]
[381533646,1756266633440,-500.0,0.00021626,2]
[381533647,1756266633449,-500.0,0.00021626,2]
[381533648,1756266633459,-500.0,0.00021626,2]
[381533649,1756266633468,-500.0,0.00021626,2]
[381533650,1756266633478,-500.0,0.00021626,2]
[381533651,1756266633488,-500.0,0.00021626,2]
[381533652,1756266633498,-500.0,0.00021626,2]
[381533653,1756266633509,-500.0,0.00021626,2]
[381533654,1756266633519,-500.0,0.00021626,2]
[381533655,1756266633527,-500.0,0.00021626,2]
[381533656,1756266633538,-500.0,0.00021626,2]
[381533657,1756266633549,-500.47380884,0.00021626,2]
[381533658,1756266633559,-500.0,0.00021626,2]
[381533659,1756266633569,-500.0,0.00021626,2]
[381533660,1756266633579,-535.07632921,0.00021626,2]
[381533661,1756266633589,-500.0,0.00021626,2]
[381533662,1756266633600,-500.0,0.00021626,2]
[381533663,1756266633610,-500.0,0.00021626,2]
[381533664,1756266633620,-464.28130583,0.00021626,2]
[381533665,1756266633629,-500.0,0.00021626,2]
[381533666,1756266633640,-500.0,0.00021626,2]
[381533667,1756266633649,-500.0,0.00021626,2]
[381533668,1756266633659,-500.0,0.00021626,2]
[381533669,1756266633669,-500.0,0.00021626,2]
[381533670,1756266633679,-500.0,0.00021626,2]
[381533671,1756266633689,-500.0,0.00021626,2]
[381533672,1756266633699,-500.0,0.00021626,2]
[381533673,1756266633709,-500.0,0.00021626,2]
[381533674,1756266633718,-500.0,0.00021626,2]
[381533675,1756266633728,-580.49048713,0.00021626,2]
[381533676,1756266633738,-500.0,0.00021626,2]
[381533677,1756266633748,-580.49048713,0.00021626,2]
[381533678,1756266633759,-500.0,0.00021626,2]
[381533679,1756266633772,-580.49048713,0.00021626,2]
[381533680,1756266633782,-118.67829878,0.00021626,2]
[381533681,1756266633796,-461.81218835,0.00021626,2]
[381533682,1756266633808,-500.0,0.00021626,2]
[381533683,1756266633817,-580.49048713,0.00021626,2]
[381533684,1756266633827,-500.0,0.00021626,2]
[381533685,1756266633837,-580.49048713,0.00021626,2]
[381533686,1756266633847,-500.0,0.00021626,2]
[381533687,1756266633857,-580.49048713,0.00021626,2]
[381533688,1756266633867,-500.0,0.00021626,2]
[381533689,1756266633877,-580.49048713,0.00021626,2]
[381533690,1756266633888,-500.0,0.00021626,2]
[381533691,1756266633899,-580.49048713,0.00021626,2]
[381533692,1756266633909,-500.0,0.00021626,2]
[381533693,1756266633919,-580.49048713,0.00021626,2]
[381533694,1756266633928,-580.49048713,0.00021626,2]
[381533695,1756266633938,-580.49048713,0.00021626,2]
[381533696,1756266633947,-580.49048713,0.00021626,2]
[381533697,1756266633957,-580.49048713,0.00021626,2]
[381533698,1756266633967,-580.49048713,0.00021626,2]
[381533699,1756266633977,-580.49048713,0.00021626,2]
[381533700,1756266633987,-500.0,0.00021626,2]
[381533701,1756266633996,-580.49048713,0.00021626,2]
[381533702,1756266634007,-580.49048713,0.00021626,2]
[381533703,1756266634017,-500.0,0.00021626,2]
[381533704,1756266634027,-580.49048713,0.00021626,2]
[381533705,1756266634036,-500.0,0.00021626,2]
[381533706,1756266634048,-580.49048713,0.00021626,2]
[381533707,1756266634058,-580.49048713,0.00021626,2]
[381533708,1756266634068,-500.0,0.00021626,2]
[381533709,1756266634078,-580.49048713,0.00021626,2]
[381533710,1756266634088,-500.0,0.00021626,2]
[381533711,1756266634098,-580.49048713,0.00021626,2]
[381533712,1756266634109,-580.49048713,0.00021626,2]
[381533713,1756266634119,-500.0,0.00021626,2]
[381533714,1756266634129,-580.49048713,0.00021626,2]
[381533715,1756266634139,-500.0,0.00021626,2]
[381533716,1756266634151,-580.49048713,0.00021626,2]
[381533717,1756266634163,-580.49048713,0.00021626,2]
[381533718,1756266634174,-500.0,0.00021626,2]
[381533719,1756266634184,-580.49048713,0.00021626,2]
[381533720,1756266634194,-500.0,0.00021626,2]
[381533721,1756266634204,-580.49048713,0.00021626,2]
[381533722,1756266634214,-500.0,0.00021626,2]
[381533723,1756266634224,-580.49048713,0.00021626,2]
[381533724,1756266634234,-500.0,0.00021626,2]
[381533725,1756266634245,-71.31571431,0.00021626,2]
[381533726,1756266634436,2621.03,0.00021661,3]
[381533736,1756266638346,-428.68428569,0.00021626,2]
[381533737,1756266638355,-580.49048713,0.00021626,2]
[381533738,1756266638364,-550.17497135,0.00021626,2]
[381533739,1756266638374,-580.49048713,0.00021626,2]
[381533740,1756266638384,-580.49048713,0.00021626,2]
[381533741,1756266638393,-500.0,0.00021626,2]
[381533742,1756266638402,-580.49048713,0.00021626,2]
[381533743,1756266638411,-580.49048713,0.00021626,2]
[381533744,1756266638420,-580.49048713,0.00021626,2]
[381533745,1756266638429,-500.0,0.00021626,2]
[381533746,1756266638438,-580.49048713,0.00021626,2]
[381533747,1756266638447,-580.49048713,0.00021626,2]
[381533748,1756266638457,-580.49048713,0.00021626,2]
[381533749,1756266638466,-580.49048713,0.00021626,2]
[381533750,1756266638475,-580.49048713,0.00021626,2]
[381533751,1756266638485,-580.49048713,0.00021626,2]
[381533752,1756266638494,-580.49048713,0.00021626,2]
[381533753,1756266638503,-580.49048713,0.00021626,2]
[381533754,1756266638513,-580.49048713,0.00021626,2]
[381533755,1756266638522,-580.49048713,0.00021626,2]
[381533756,1756266638531,-580.49048713,0.00021626,2]
[381533757,1756266638541,-580.49048713,0.00021626,2]
[381533758,1756266638553,-580.49048713,0.00021626,2]
[381533759,1756266638562,-580.49048713,0.00021626,2]
[381533760,1756266638571,-580.49048713,0.00021626,2]
[381533761,1756266638581,-580.49048713,0.00021626,2]
[381533762,1756266638591,-580.49048713,0.00021626,2]
[381533763,1756266638600,-580.49048713,0.00021626,2]
[381533764,1756266638609,-580.49048713,0.00021626,2]
[381533765,1756266638619,-580.49048713,0.00021626,2]
[381533766,1756266638628,-580.49048713,0.00021626,2]
[381533767,1756266638637,-500.0,0.00021626,2]
[381533768,1756266638646,-500.0,0.00021626,2]
[381533769,1756266638655,-562.09634412,0.00021626,2]
[381533770,1756266638665,-562.09634412,0.00021626,2]
[381533771,1756266638674,-562.09634412,0.00021626,2]
[381533772,1756266638684,-562.09634412,0.00021626,2]
[381533773,1756266638693,-562.09634412,0.00021626,2]
[381533774,1756266638703,-562.09634412,0.00021626,2]
[381533775,1756266638713,-562.09634412,0.00021626,2]
[381533776,1756266638722,-562.09634412,0.00021626,2]
[381533777,1756266638731,-562.09634412,0.00021626,2]
[381533778,1756266638741,-562.09634412,0.00021626,2]
[381533779,1756266638751,-562.09634412,0.00021626,2]
[381533780,1756266638760,-562.09634412,0.00021626,2]
[381533781,1756266638770,-562.09634412,0.00021626,2]
[381533782,1756266638780,-562.09634412,0.00021626,2]
[381533783,1756266638789,-562.09634412,0.00021626,2]
[381533784,1756266638804,-562.09634412,0.00021626,2]
[381533785,1756266638813,-562.09634412,0.00021626,2]
[381533786,1756266638822,-562.09634412,0.00021626,2]
[381533787,1756266638832,-562.09634412,0.00021626,2]
[381533788,1756266638841,-562.09634412,0.00021626,2]
[381533789,1756266638851,-562.09634412,0.00021626,2]
[381533790,1756266638860,-562.09634412,0.00021626,2]
[381533791,1756266638869,-562.09634412,0.00021626,2]
[381533792,1756266638878,-562.09634412,0.00021626,2]
[381533793,1756266638888,-562.09634412,0.00021626,2]
[381533794,1756266638897,-562.09634412,0.00021626,2]
[381533795,1756266638906,-562.09634399,0.00021626,2]
[381533796,1756266638915,-1871.06712213,0.00021627,2]
[381533797,1756266638925,-1200.0,0.00021671,2]
[381533798,1756266638934,-50000.0,0.00021672,2]
[381533799,1756266638943,-500.0,0.00021673,2]
[381533800,1756266638953,-361.63929156,0.00021673,2]
[381533801,1756266638962,-150.75878594,0.00021673,2]
[381533802,1756266638971,-500.0,0.00021673,2]
[381533803,1756266638980,-500.39064914,0.00021673,2]
[381533804,1756266638989,-500.0,0.00021673,2]
[381533805,1756266638998,-500.0,0.00021673,2]
[381533806,1756266639008,-500.0,0.00021673,2]
[381533807,1756266639017,-500.0,0.00021673,2]
[381533808,1756266639027,-260.37778008,0.00021673,2]
[381533809,1756266639037,-500.0,0.00021673,2]
[381533810,1756266639047,-502.88562354,0.00021673,2]
[381533811,1756266639061,-501.04479887,0.00021673,2]
[381533812,1756266639070,-503.23374094,0.00021673,2]
[381533813,1756266639079,-500.0,0.00021673,2]
[381533814,1756266639088,-500.0,0.00021673,2]
[381533815,1756266639098,-500.0,0.00021673,2]
[381533816,1756266639107,-500.0,0.00021673,2]
[381533817,1756266639116,-500.0,0.00021673,2]
[381533818,1756266639125,-500.0,0.00021673,2]
[381533819,1756266639135,-500.0,0.00021673,2]
[381533820,1756266639145,-502.14909456,0.00021673,2]
[381533821,1756266639158,-500.0,0.00021673,2]
[381533822,1756266639167,-500.0,0.00021673,2]
[381533823,1756266639176,-156.01285083,0.00021673,2]
[381533824,1756266639186,-500.0,0.00021673,2]
[381533825,1756266639195,-500.0,0.00021673,2]
[381533826,1756266639205,-500.0,0.00021673,2]
[381533827,1756266639214,-340.04467141,0.00021673,2]
[381533828,1756266639223,-500.0,0.00021673,2]
[381533829,1756266639235,-469.718066,0.00021686,2]
[381533830,1756266639244,-1803.81639749,0.00021796,2]
[381533831,1756266639253,-500.0,0.00021899,2]
[381533832,1756266639262,-200.53383049,0.00021918,2]
[381533833,1756266639271,-500.0,0.00021973,2]
[381533834,1756266639281,-501.1939508,0.00021973,2]
[381533835,1756266639290,-500.0,0.00021973,2]
[381533836,1756266639304,-500.0,0.00021973,2]
[381533837,1756266639313,-595.35038784,0.00021973,2]
[381533838,1756266639324,-500.0,0.00021973,2]
[381533839,1756266639333,-500.0,0.00021973,2]
[381533840,1756266639342,-500.0,0.00021973,2]
[381533841,1756266639352,-500.0,0.00021973,2]
[381533842,1756266639361,-500.0,0.00021973,2]
[381533843,1756266639371,-232.94117572,0.00021973,2]
[381533844,1756266639380,-500.0,0.00021973,2]
[381533845,1756266639390,-522.91788754,0.00021973,2]
[381533846,1756266639399,-500.0,0.00021973,2]
[381533847,1756266639408,-500.0,0.00021973,2]
[381533848,1756266639417,-500.0,0.00021973,2]
[381533849,1756266639426,-500.0,0.00021973,2]
[381533850,1756266639435,-174.04518154,0.00021973,2]
[381533851,1756266639444,-500.0,0.00021973,2]
[381533852,1756266639454,-500.0,0.00021973,2]
[381533853,1756266639463,-500.0,0.00021973,2]
[381533854,1756266639473,-500.60121131,0.00021973,2]
[381533855,1756266639482,-500.0,0.00021973,2]
[381533856,1756266639492,-502.02243295,0.00021973,2]
[381533857,1756266639501,-500.0,0.00021973,2]
[381533858,1756266639511,-500.0,0.00021973,2]
[381533859,1756266639521,-575.67741229,0.00021973,2]
[381533860,1756266639531,-500.0,0.00021973,2]
[381533861,1756266639541,-500.0,0.00021973,2]
[381533862,1756266639552,-503.56407155,0.00021973,2]
[381533863,1756266639560,-446.40180981,0.00021973,2]
[381533864,1756266639570,-500.0,0.00021973,2]
[381533865,1756266639580,-500.57010825,0.00021973,2]
[381533866,1756266639589,-500.0,0.00021973,2]
[381533867,1756266639599,-500.0,0.00021973,2]
[381533868,1756266639608,-500.0,0.00021973,2]
[381533869,1756266639617,-500.0,0.00021973,2]
[381533870,1756266639628,-500.0,0.00021973,2]
[381533871,1756266639637,-100000.0,0.0002199,2]
[381533872,1756266639647,-500.0,0.00022173,2]
[381533873,1756266639656,-1000.0,0.00022221,2]
[381533874,1756266639666,-1000.0,0.00022221,2]
[381533875,1756266639675,-1000.0,0.00022221,2]
[381533876,1756266639684,-520.29274837,0.00022221,2]
[381533877,1756266639693,-529.15628133,0.00022221,2]
[381533878,1756266639703,-502.78309826,0.00022221,2]
[381533879,1756266639712,-1000.0,0.00022221,2]
[381533880,1756266639721,-1050.95153627,0.00022221,2]
[381533881,1756266639730,-1000.0,0.00022221,2]
[381533882,1756266639739,-1000.0,0.00022221,2]
[381533883,1756266639750,-1000.0,0.00022221,2]
[381533884,1756266639759,-693.49576282,0.00022221,2]
[381533885,1756266639768,-560.55607922,0.00022221,2]
[381533886,1756266639778,-1000.0,0.00022221,2]
[381533887,1756266639787,-1000.0,0.00022221,2]
[381533888,1756266639798,-1000.0,0.00022221,2]
[381533889,1756266639812,-1004.06125782,0.00022221,2]
[381533890,1756266639821,-1000.0,0.00022221,2]
[381533892,1756266639832,-2845.96024854,0.00022425,2]
[381533894,1756266639841,-500.0,0.00022447,2]
[381533895,1756266639850,-1000.0,0.00022521,2]
[381533896,1756266639859,-1000.0,0.00022521,2]
[381533897,1756266639868,-1001.49178648,0.00022521,2]
[381533898,1756266639878,-1000.0,0.00022521,2]
[381533899,1756266639887,-501.17237062,0.00022521,2]
[381533900,1756266639897,-1098.68508446,0.00022521,2]
[381533901,1756266639907,-577.13072661,0.00022521,2]
[381533902,1756266639916,-502.38332415,0.00022521,2]
[381533903,1756266639926,-1000.0,0.00022521,2]
[381533904,1756266639935,-1001.43812035,0.00022521,2]
[381533905,1756266639944,-502.48747928,0.00022521,2]
[381533906,1756266639953,-1000.0,0.00022521,2]
[381533907,1756266639963,-1000.0,0.00022521,2]
[381533908,1756266639973,-502.72594228,0.00022521,2]
[381533909,1756266639983,-1000.0,0.00022521,2]
[381533910,1756266639994,-501.23748043,0.00022521,2]
[381533911,1756266640003,-500.0,0.00022521,2]
[381533912,1756266640013,-1000.0,0.00022521,2]
[381533913,1756266640022,-1000.0,0.00022521,2]
[381533914,1756266640032,-500.0,0.00022521,2]
[381533915,1756266640042,-1000.0,0.00022521,2]
[381533916,1756266640055,-1000.0,0.00022521,2]
[381533917,1756266640064,-1000.0,0.00022521,2]
[381533918,1756266640074,-500.0,0.00022671,2]
[381533920,1756266640083,-500.0,0.00022671,2]
[381533922,1756266640092,-500.0,0.00022671,2]
[381533924,1756266640102,-150.0,0.00022671,2]
[381533926,1756266640111,-500.0,0.00022671,2]
[381533928,1756266640120,-500.0,0.00022721,2]
[381533930,1756266640130,-151.7571885,0.00022756,2]
[381533932,1756266640139,-729.11282378,0.00022768,2]
[381533934,1756266640150,-1500.0,0.00022768,2]
[381533935,1756266640161,-404.70388807,0.00022768,2]
[381533936,1756266640171,-1003.6196867,0.00022768,2]
[381533937,1756266640180,-907.20047108,0.00022768,2]
[381533938,1756266640191,-397.22534997,0.00022768,2]
[381533939,1756266640200,-1500.0,0.00022768,2]
[381533940,1756266640210,-1500.0,0.00022768,2]
[381533941,1756266640219,-1500.0,0.00022768,2]
[381533942,1756266640229,-501.29256613,0.00022768,2]
[381533943,1756266640239,-618.61357223,0.00022773,2]
[381533944,1756266640249,-500.0,0.00022773,2]
[381533945,1756266640258,-500.0,0.00022773,2]
[381533946,1756266640268,-500.0,0.00022773,2]
[381533947,1756266640277,-627.20092495,0.00022773,2]
[381533948,1756266640287,-160.0,0.00022895,2]
[381533949,1756266640296,-93941.9259528,0.00022936,2]
[381533950,1756266640308,-500.0,0.00022973,2]
[381533951,1756266640317,-500.0,0.00022973,2]
[381533952,1756266640327,-501.17417094,0.00022973,2]
[381533953,1756266640340,-500.0,0.00022973,2]
[381533954,1756266640350,-500.0,0.00022973,2]
[381533956,1756266640359,-500.0,0.00022973,2]
[381533958,1756266640369,-500.0,0.00022973,2]
[381533959,1756266640378,-500.0,0.00022973,2]
[381533961,1756266640388,-500.0,0.00022973,2]
[381533963,1756266640398,-500.0,0.00022973,2]
[381533965,1756266640408,-152.7988144,0.00022973,2]
[381533967,1756266640417,-500.0,0.00022973,2]
[381533969,1756266640427,-500.0,0.00022973,2]
[381533971,1756266640437,-500.0,0.00022973,2]
[381533973,1756266640446,-500.97218975,0.00022973,2]
[381533975,1756266640455,-500.0,0.00022973,2]
[381533977,1756266640465,-500.0,0.00022995,2]
[381533979,1756266640474,-666.0,0.00023025,2]
[381533981,1756266640484,-11869.12,0.00023031,3]
[381533983,1756266640493,-5934.56,0.00023031,3]
[381533985,1756266640503,-3769.32,0.00023031,3]
[381533987,1756266640512,-5242.06,0.00023031,3]
[381533989,1756266640522,-781.66256,0.00023068,2]
[381533992,1756266640532,-1131.86749671,0.00023068,2]
[381533994,1756266640542,-1500.0,0.00023068,2]
[381533996,1756266640552,-1500.0,0.00023068,2]
[381533998,1756266640562,-680.99613973,0.00023068,2]
[381534000,1756266640571,-1500.0,0.00023068,2]
[381534002,1756266640581,-1500.0,0.00023068,2]
[381534003,1756266640589,-1000.0,0.00023219,2]
[381534006,1756266640600,-456.84374954,0.00023219,2]
[381534008,1756266640609,-250.0,0.00023219,2]
[381534010,1756266640619,-500.0,0.00023219,2]
[381534012,1756266640628,-2845.96024854,0.00023251,2]
[381534014,1756266640637,-500.0,0.00023269,2]
[381534016,1756266640647,-504.17438057,0.00023316,2]
[381534018,1756266640656,-2127.17364569,0.00023316,2]
[381534019,1756266640665,-2000.0,0.00023316,2]
[381534022,1756266640675,-1000.0,0.00023321,2]
[381534024,1756266640685,-1000.0,0.00023321,2]
[381534026,1756266640694,-1000.0,0.00023321,2]
[381534028,1756266640704,-1871.06712213,0.00023353,2]
[381534030,1756266640713,-420.0,0.00023401,2]
[381534032,1756266640723,-420.0,0.00023401,2]
[381534034,1756266640733,-420.0,0.00023401,2]
[381534036,1756266640743,-420.0,0.00023401,2]
[381534037,1756266640764,-420.0,0.00023401,2]
[381534039,1756266640775,-260.0,0.00023443,2]
[381534042,1756266640785,-1680.0,0.0002351,2]
[381534044,1756266640794,-502.53599946,0.00023521,2]
[381534046,1756266640808,-1000.0,0.00023521,2]
[381534048,1756266640817,-1000.0,0.00023521,2]
[381534050,1756266640827,-1000.0,0.00023521,2]
[381534052,1756266640836,-501.41001445,0.00023521,2]
[381534054,1756266640847,-500.0,0.00023521,2]
[381534056,1756266640856,-1002.58407541,0.00023521,2]
[381534058,1756266640865,-1000.0,0.00023521,2]
[381534060,1756266640874,-501.47680023,0.00023521,2]
[381534062,1756266640884,-500.0,0.00023521,2]
[381534063,1756266640893,-362.92583263,0.00023543,2]